bitfinex/quotes_ETHUSD_20211001
["timestamp","ask_amount","ask_price","bid_price","bid_amount"]
[1633092358053,1.04314799,3228.9,3228.5,0.003]
[1633092358252,0.186,3229.3,3228.5,0.003]
[1633092358853,1.294,3228.9,3228.5,0.003]
[1633092359052,3.21786424,3229.0,3228.6,0.03885806]
[1633092359255,0.186,3229.3,3228.6,0.03885806]
[1633092359256,15.495552,3228.7,3228.6,0.03885806]
[1633092359452,16.50011972,3228.7,3228.6,0.03885806]
[1633092359853,2.46091972,3228.7,3228.6,0.03885806]
[1633092360120,7.10966972,3228.7,3228.6,0.03885806]
[1633092360255,1.00456772,3228.7,3228.6,0.03885806]
[1633092360854,5.85,3228.5,3228.3,0.006]
[1633092361055,0.186,3228.4,3228.3,0.006]
[1633092361254,8.036,3228.4,3228.3,0.006]
[1633092361457,4.83439,3228.4,3228.3,0.006]
[1633092362054,6.12839,3228.4,3228.3,0.006]
[1633092362460,0.186,3228.4,3228.3,0.006]
[1633092362656,0.30497633,3228.4,3228.3,0.006]
[1633092363120,1.59897633,3228.4,3228.3,0.006]
[1633092364059,6.24698633,3228.4,3228.3,0.006]
[1633092364659,6.12801,3228.4,3228.3,0.006]
[1633092364961,20.45,3228.3,3227.6,0.006]
[1633092365161,4.6494,3228.0,3227.6,0.006]
[1633092365362,0.186,3227.9,3227.6,0.006]
[1633092365762,0.75285529,3227.8,3227.6,0.006]
[1633092365960,2.23285529,3227.8,3227.6,0.006]
[1633092366361,0.186,3227.8,3227.6,0.006]
[1633092368166,0.30506299,3227.8,3227.6,0.006]
[1633092368766,1.59906299,3227.8,3227.6,0.006]
[1633092369225,1.07125279,3227.8,3227.6,0.006]
[1633092369826,2.36525279,3227.8,3227.6,0.006]
[1633092370026,2.2461898,3227.8,3227.6,0.006]
[1633092371228,8.15,3227.7,3226.2,3.0543716]
[1633092371428,0.003,3227.0,3226.2,3.0543716]
[1633092371827,0.003,3227.0,3226.5,0.96414982]
[1633092372230,0.003,3227.0,3226.2,3.0543716]
[1633092373028,0.003,3227.0,3226.3,3.09902]
[1633092373229,0.003,3227.0,3226.6,4.64841]
[1633092373428,0.003,3227.0,3226.8,0.92877215]
[1633092373631,0.12222195,3227.0,3226.3,1.59902]
[1633092373827,0.12222195,3227.0,3226.2,8.13371223]
[1633092374031,0.003,3227.5,3227.4,0.79210625]
[1633092374230,0.003,3227.5,3227.4,1.00235279]
[1633092374431,0.003,3227.5,3227.4,1.26792873]
[1633092375029,0.003,3227.5,3227.4,2.24414892]
[1633092375232,0.003,3227.5,3227.4,0.97810625]
[1633092375432,0.003,3227.5,3227.4,0.79210625]
[1633092375634,0.003,3227.5,3227.4,0.87919274]
[1633092377631,0.85988962,3227.5,3227.4,0.87919274]
[1633092377831,0.003,3227.5,3227.4,0.87919274]
[1633092378642,0.2249,3227.5,3227.4,0.87919274]
[1633092379040,0.2249,3227.5,3227.4,0.79210625]
[1633092379240,0.28440258,3227.5,3227.4,0.79210625]
[1633092379439,1.28868606,3227.5,3227.4,0.79210625]
[1633092381042,1.22918348,3227.5,3227.4,0.79210625]
[1633092381242,1.22918348,3227.5,3227.4,0.8791928]
[1633092381446,0.2249,3227.5,3227.4,0.8791928]
[1633092381842,4.87362,3227.5,3227.4,0.8791928]
[1633092382643,5.89139687,3227.5,3227.4,0.8791928]
[1633092382842,0.2249,3227.5,3227.4,0.8791928]
[1633092383043,0.2249,3227.5,3227.4,0.72437995]
[1633092383243,1.0579078,3227.5,3227.4,0.72437995]
[1633092383844,0.2249,3227.5,3227.4,0.72437995]
[1633092384649,0.28440258,3227.5,3227.4,0.6372934]
[1633092385049,1.57840258,3227.5,3227.4,0.6372934]
[1633092385447,2.69400891,3227.5,3227.4,0.6372934]
[1633092385649,3.48742145,3227.5,3227.4,0.6372934]
[1633092386251,6.58723865,3227.5,3227.4,0.6372934]
[1633092386652,6.58723865,3227.5,3227.4,0.72438]
[1633092386653,6.71373607,3227.5,3227.4,0.72438]
[1633092388049,6.71373607,3227.5,3227.0,0.12222195]
[1633092388050,7.5,3227.4,3227.0,0.12222195]
[1633092388253,0.186,3227.3,3227.0,0.12222195]
[1633092388449,1.294,3227.2,3227.0,0.12222195]
[1633092388648,0.186,3227.1,3227.0,0.12222195]
[1633092388850,9.85,3227.0,3226.3,0.003]
[1633092389049,15.636,3227.1,3226.3,0.003]
[1633092389050,1.89760201,3226.4,3226.3,0.003]
[1633092389253,0.89724143,3226.4,3226.3,0.003]
[1633092390049,1.0004463,3226.4,3226.3,0.003]
[1633092390251,6.64286858,3226.4,3226.3,0.003]
[1633092390453,6.64286858,3226.4,3224.3,16.09013436]
[1633092390454,3.1009476,3226.1,3224.3,16.09013436]
[1633092390652,3.10077,3226.1,3225.2,7.1519967]
[1633092391050,0.003,3226.0,3225.2,7.1519967]
[1633092391254,0.98097134,3225.6,3225.2,7.1519967]
[1633092391453,4.65178,3225.4,3225.2,8.14764713]
[1633092391652,4.65178,3225.4,3225.2,7.1519967]
[1633092392051,4.65178,3225.4,3225.3,0.04425894]
[1633092392851,0.8032454,3225.8,3225.3,0.04425894]
[1633092393650,5.4543354,3225.8,3225.3,0.04425894]
[1633092393850,6.36629325,3225.8,3225.3,0.04425894]
[1633092394051,4.65109,3225.8,3225.3,0.04425894]
[1633092395652,3.10111,3225.7,3225.3,0.00092377]
[1633092396258,0.10331334,3225.8,3225.3,0.00092377]
[1633092396656,1.14127586,3225.7,3225.3,0.00092377]
[1633092396854,0.10331334,3225.8,3225.3,0.00092377]
[1633092397059,0.003,3226.0,3225.8,0.39668666]
[1633092397454,0.81521522,3226.0,3225.8,0.39668666]
[1633092397658,0.81521522,3226.0,3225.9,0.09504645]
[1633092397856,1.94450636,3226.0,3225.9,0.09504645]
[1633092398056,3.10083,3226.1,3226.0,1.48626357]
[1633092398259,0.003,3226.5,3226.0,1.48626357]
[1633092398260,0.003,3226.5,3226.2,4.76551356]
[1633092398463,0.003,3226.5,3226.2,1.47307978]
[1633092398658,0.003,3226.5,3226.4,0.025775]
[1633092399058,0.003,3226.5,3226.4,1.19360668]
[1633092399561,0.003,3226.5,3226.4,2.48760668]
[1633092400158,0.003,3227.0,3226.4,2.48760668]
[1633092400359,0.003,3227.0,3226.9,16.4030493]
[1633092400558,0.003,3227.0,3226.9,1.1390493]
[1633092401158,0.05445424,3227.0,3226.9,1.1390493]
[1633092401558,0.05445424,3227.0,3226.9,2.4330493]
[1633092402358,0.05445424,3227.0,3226.9,2.3531363]
[1633092402960,0.003,3227.0,3226.9,7.0810993]
[1633092403563,0.003,3227.0,3226.6,17.4062606]
[1633092403564,0.003,3227.0,3226.6,0.186]
[1633092403565,0.82967393,3226.9,3226.6,0.186]
[1633092403764,0.82967393,3226.9,3226.2,3.04358628]
[1633092403765,1.294,3226.8,3226.2,3.04358628]
[1633092403961,0.079913,3226.3,3226.2,3.04358628]
[1633092404163,4.917053,3226.3,3226.2,3.04358628]
[1633092404563,7.17915783,3226.3,3226.2,3.04358628]
[1633092404762,9.40758373,3226.3,3226.2,1.47307978]
[1633092404959,8.11358373,3226.3,3226.2,1.47307978]
[1633092405171,6.56162106,3226.3,3226.2,1.47307978]
[1633092405370,4.83714,3226.3,3226.2,1.47307978]
[1633092405774,4.917053,3226.3,3226.2,1.47307978]
[1633092406571,6.74375102,3226.3,3226.2,1.47307978]
[1633092407376,6.74375102,3226.3,3225.8,0.39668666]
[1633092407377,0.39993944,3226.1,3225.8,0.39668666]
[1633092407575,4.66373671,3225.9,3225.8,0.39668666]
[1633092407773,11.04073671,3225.9,3225.8,8.666e-05]
[1633092407973,3.10236,3225.5,3225.2,0.9469067]
[1633092408230,4.639,3225.3,3225.2,0.9469067]
[1633092408432,4.825,3225.3,3225.0,0.009]
[1633092408633,4.825,3225.3,3225.2,0.09498209]
[1633092408634,9.59874,3225.3,3225.2,0.09498209]
[1633092409029,9.47794,3225.3,3225.2,0.09498209]
[1633092409230,10.3439752,3225.3,3225.0,0.009]
[1633092409430,0.89046211,3225.2,3225.0,0.009]
[1633092409629,1.07646211,3225.2,3225.0,0.009]
[1633092409830,0.186,3225.2,3225.0,0.009]
[1633092410829,1.11763216,3225.2,3225.0,0.009]
[1633092411029,3.49122693,3225.2,3225.0,0.009]
[1633092411230,2.19722693,3225.2,3225.0,0.009]
[1633092411432,2.31802693,3225.2,3225.0,0.009]
[1633092411630,2.42631522,3225.2,3225.0,0.009]
[1633092412030,2.19722693,3225.2,3225.0,0.009]
[1633092412232,2.29643975,3225.2,3225.0,0.009]
[1633092413031,2.52552804,3225.2,3225.0,0.009]
[1633092413230,2.52552804,3225.2,3225.1,0.00791156]
[1633092413432,2.64552804,3225.2,3225.1,0.00791156]
[1633092413632,2.29643975,3225.2,3225.1,0.00791156]
[1633092414033,1.11763216,3225.2,3225.1,0.00791156]
[1633092414234,1.11763216,3225.2,3225.1,0.05539274]
[1633092414634,1.11763216,3225.2,3225.1,0.05023934]
[1633092414834,0.186,3225.2,3225.1,1.34423934]
[1633092415034,0.186,3225.5,3225.1,2.35774646]
[1633092415238,0.003,3226.0,3225.2,0.186]
[1633092415438,0.186,3226.8,3226.3,2.29847026]
[1633092415737,0.186,3226.8,3226.4,10.24176432]
[1633092415937,0.81723046,3226.9,3226.4,3.78576432]
[1633092416135,0.81723046,3226.9,3226.4,1.294]
[1633092416335,1.14075082,3226.8,3226.4,1.294]
[1633092417134,0.87667613,3226.5,3226.3,2.29847026]
[1633092417734,5.62621092,3226.5,3226.3,2.29847026]
[1633092417937,9.994,3226.4,3226.3,2.29847026]
[1633092418134,5.66167344,3226.5,3226.3,2.29847026]
[1633092418335,4.75253479,3226.5,3226.3,2.29847026]
[1633092419137,0.10202479,3226.5,3226.3,2.29847026]
[1633092419635,0.76947917,3226.4,3226.3,2.29847026]
[1633092421435,0.76947917,3226.4,3226.3,2.24847026]
[1633092421636,0.95547917,3226.4,3226.3,2.24847026]
[1633092421835,0.95547917,3226.4,3225.5,0.003]
[1633092421836,2.24947917,3226.4,3225.5,0.003]
[1633092422035,1.20744393,3226.0,3225.5,0.003]
[1633092422241,1.20744393,3226.0,3225.3,0.003]
[1633092422438,0.079913,3225.8,3225.3,0.003]
[1633092422638,4.652,3225.5,3225.3,0.003]
[1633092422837,4.652,3225.5,3225.2,0.03413138]
[1633092422838,4.838,3225.5,3225.2,0.03413138]
[1633092423237,4.92520464,3225.5,3225.2,0.03413138]
[1633092423438,0.92436895,3225.3,3225.2,0.03413138]
[1633092423636,0.27320464,3225.5,3225.3,0.00080957]
[1633092423637,0.03125021,3225.4,3225.3,0.00080957]
[1633092423838,0.116,3225.4,3225.3,0.00080957]
[1633092424038,8.02678004,3225.5,3225.3,0.00080957]
[1633092424236,1.04228697,3225.4,3225.3,0.00080957]
[1633092424437,2.33628697,3225.4,3225.3,0.00080957]
[1633092424637,1.99987309,3225.4,3225.3,0.00080957]
[1633092424837,1.99987309,3225.4,3225.2,0.01814095]
[1633092424838,11.95,3225.3,3225.2,0.01814095]
[1633092425039,5.29729446,3224.8,3223.9,0.006]
[1633092425244,1.75697016,3224.8,3223.9,0.006]
[1633092425440,2.77417219,3224.8,3223.9,0.006]
[1633092425642,1.14685431,3222.9,3222.4,7.70922]
[1633092425840,10.87526838,3223.2,3221.7,2.766]
[1633092425841,1.49346133,3222.4,3221.7,1.95249708]
[1633092426041,4.65669,3222.2,3221.7,1.65157202]
[1633092426240,9.47405547,3222.5,3221.9,1.294]
[1633092426442,9.47405547,3222.5,3221.7,0.006]
[1633092426639,9.47405547,3222.5,3222.0,1.09889222]
[1633092426640,9.44909901,3222.5,3222.0,1.09889222]
[1633092426839,9.44909901,3222.5,3221.9,0.9680227]
[1633092427039,9.44909901,3222.5,3221.7,0.006]
[1633092428040,0.86003188,3222.0,3221.7,0.006]
[1633092428248,9.44909901,3222.5,3221.8,1.294]
[1633092428443,9.44909901,3222.5,3221.7,0.006]
[1633092428640,0.08767735,3222.4,3221.7,0.006]
[1633092429240,0.08767735,3222.4,3221.2,0.006]
[1633092429241,5.50199934,3222.3,3220.8,8.87083934]
[1633092429442,3.1045824,3222.2,3220.9,0.186]
[1633092429642,0.003,3222.0,3220.9,0.186]
[1633092429840,0.003,3221.5,3220.9,0.186]
[1633092430040,0.003,3221.5,3221.0,0.88384984]
[1633092430249,0.003,3221.5,3219.7,0.006]
[1633092430250,0.04129446,3219.8,3219.7,0.006]
[1633092430443,1.67077652,3219.8,3219.7,0.39090017]
[1633092430641,1.67077652,3219.8,3219.7,6.744]
[1633092430642,0.81128721,3219.8,3219.7,6.744]
[1633092431239,0.003,3220.0,3219.8,15.4]
[1633092431440,0.003,3220.0,3219.2,0.32657343]
[1633092431441,0.003,3220.0,3219.9,15.586]
[1633092431640,0.003,3220.0,3219.9,2.25281917]
[1633092432039,0.003,3220.0,3219.9,1.294]
[1633092432241,0.003,3220.0,3219.9,2.39356933]
[1633092432442,0.003,3220.0,3219.9,1.294]
[1633092434039,0.003,3220.0,3219.8,0.88042682]
[1633092434240,0.003,3220.0,3219.7,4.658]
[1633092434241,0.09097418,3220.0,3219.7,4.658]
[1633092434441,0.09097418,3220.0,3219.6,6.21048]
[1633092434442,0.186,3219.9,3219.6,6.21048]
[1633092435040,0.186,3219.9,3219.7,7.20198053]
[1633092435241,0.136,3219.9,3219.8,2.4942961]
[1633092435640,0.09097418,3220.0,3219.9,0.136]
[1633092435845,0.003,3221.0,3220.9,4.638]
[1633092436050,12.90836515,3222.3,3220.9,4.638]
[1633092436051,0.79857755,3222.5,3221.3,5.31970554]
[1633092436246,0.186,3222.2,3221.4,2.03502626]
[1633092436443,0.003,3222.5,3221.4,0.74102626]
[1633092436643,0.003,3222.5,3221.4,2.24400971]
[1633092437244,0.003,3222.5,3221.4,12.69364971]
[1633092437444,0.003,3222.5,3221.4,13.14522565]
[1633092437644,0.003,3222.5,3221.5,3.97070201]
[1633092437844,0.003,3222.5,3221.6,0.49510119]
[1633092438045,0.003,3222.5,3222.0,3.1028388]
[1633092438244,0.003,3222.5,3222.1,0.186]
[1633092438444,0.003,3222.5,3222.2,7.32556581]
[1633092438649,0.003,3222.5,3222.4,16.56321107]
[1633092438844,0.003,3222.5,3222.4,16.74921107]
[1633092439244,0.003,3222.5,3222.4,1.61478701]
[1633092439446,0.003,3222.5,3222.4,2.90878701]
[1633092439644,4.083e-05,3222.5,3222.4,2.90878701]
[1633092440046,0.003,3224.0,3222.6,0.21124647]
[1633092440249,0.003,3224.0,3222.5,15.4]
[1633092440250,0.003,3224.0,3223.2,0.02527023]
[1633092440448,0.003,3225.0,3223.6,5.94516]
[1633092440647,0.003,3225.0,3224.0,3.1008843]
[1633092440845,0.003,3225.0,3224.1,0.186]
[1633092441447,0.003,3225.0,3224.3,1.294]
[1633092441648,0.003,3225.0,3224.4,15.586]
[1633092441848,0.003,3225.0,3224.4,16.47892679]
[1633092442048,0.003,3225.0,3224.4,17.48218428]
[1633092442250,0.003,3225.0,3224.4,17.74776022]
[1633092442448,0.003,3225.0,3224.9,17.41878466]
[1633092442649,0.003,3225.0,3224.9,18.96208466]
[1633092442848,0.003,3225.0,3224.9,3.37608466]
[1633092443049,0.003,3225.0,3224.9,11.65385497]
[1633092443250,0.003,3225.0,3224.9,5.12132923]
[1633092443449,0.003,3225.0,3224.9,6.41532923]
[1633092443858,0.003,3225.5,3224.9,6.68090517]
[1633092444050,0.003,3225.5,3225.1,3.0994662]
[1633092444251,0.003,3225.5,3225.2,0.149]
[1633092444653,0.003,3225.5,3225.4,7.51203753]
[1633092444851,0.003,3225.5,3225.4,0.86103753]
[1633092445451,0.0269299,3225.5,3225.4,0.149]
[1633092445650,0.0269299,3225.5,3225.4,2.48040472]
[1633092445851,0.0269299,3225.5,3225.4,1.18640472]
[1633092446654,0.0269299,3225.5,3225.4,2.11514778]
[1633092446851,0.004,3225.5,3225.4,2.11514778]
[1633092447051,0.004,3225.5,3225.4,3.40914778]
[1633092447651,0.004,3225.5,3225.4,2.11514778]
[1633092448253,0.004,3225.5,3225.4,3.40914778]
[1633092448854,0.004,3225.5,3225.4,2.11514778]
[1633092449254,0.001,3225.9,3225.4,2.38072372]
[1633092449453,0.001,3225.9,3225.5,0.30534661]
[1633092449653,0.001,3225.9,3225.6,0.149]
[1633092450052,0.001,3225.9,3225.6,7.93269755]
[1633092450854,0.02492694,3225.9,3225.6,7.93269755]
[1633092451055,0.02492694,3225.9,3225.7,1.42116736]
[1633092451255,0.02492694,3225.9,3225.8,0.149]
[1633092451454,0.02392694,3225.9,3225.8,0.149]
[1633092451658,0.24420238,3225.9,3225.8,0.149]
[1633092452458,0.22027544,3225.9,3225.8,0.149]
[1633092454061,0.2249,3226.0,3225.9,15.4]
[1633092454266,0.2249,3226.0,3225.9,15.86222296]
[1633092454459,0.0943806,3228.4,3225.9,0.41457594]
[1633092454662,0.72069225,3227.4,3226.5,0.76177364]
[1633092454861,0.72069225,3227.4,3227.0,0.003]
[1633092455061,0.72069225,3227.4,3227.0,0.0022]
[1633092455261,0.02563917,3228.1,3227.3,0.003]
[1633092455461,0.02563917,3228.1,3227.0,0.003]
[1633092455661,0.02563917,3228.1,3226.6,0.0052]
[1633092455859,4.67397917,3228.1,3226.6,0.0052]
[1633092456059,4.64834,3228.1,3226.6,0.0052]
[1633092456265,0.87715416,3227.8,3227.2,0.81606734]
[1633092456463,0.87715416,3227.8,3227.1,0.93172571]
[1633092456661,0.87715416,3227.8,3227.3,0.003]
[1633092456864,0.87715416,3227.8,3226.6,0.0022]
[1633092456865,0.87715416,3227.8,3227.2,0.003]
[1633092457061,0.02391507,3228.1,3226.6,0.0052]
[1633092457661,4.64872,3227.9,3226.6,0.0052]
[1633092457862,0.02391507,3228.1,3226.6,0.0052]
[1633092458061,0.97347912,3227.6,3227.0,0.70999405]
[1633092458464,0.97347912,3227.6,3227.1,0.003]
[1633092458762,0.97347912,3227.6,3227.1,1.0770463]
[1633092459162,0.97347912,3227.6,3227.2,0.003]
[1633092459561,1.294,3227.4,3226.8,0.0052]
[1633092459762,0.97347912,3227.6,3226.8,0.0052]
[1633092460162,0.97347912,3227.6,3227.2,0.95862617]
[1633092460562,0.97347912,3227.6,3227.3,0.003]
[1633092460762,0.02507813,3227.9,3227.2,0.95262617]
[1633092460964,0.02507813,3227.9,3226.8,0.0022]
[1633092461866,0.02391545,3227.8,3226.8,0.0022]
[1633092462121,0.73348746,3227.4,3226.8,0.0022]
[1633092462263,0.73348746,3227.4,3226.7,0.0022]
[1633092462471,0.73348746,3227.4,3226.5,0.003]
[1633092462472,10.93909446,3226.6,3226.5,0.003]
[1633092462863,10.93909446,3226.6,3225.7,0.006]
[1633092462864,0.03909446,3226.6,3225.7,0.006]
[1633092463066,0.8967528,3225.8,3225.2,0.93524755]
[1633092463265,0.8967528,3225.8,3225.2,0.92624755]
[1633092463463,0.8967528,3225.8,3225.3,0.009]
[1633092463664,3.15163327,3226.5,3225.3,0.009]
[1633092463864,0.001,3225.9,3225.3,0.009]
[1633092464065,0.001,3225.9,3225.5,1.08067569]
[1633092464468,0.001,3225.9,3225.6,0.006]
[1633092465466,2.11440527,3225.8,3225.6,0.006]
[1633092465669,0.82040527,3225.8,3225.6,0.006]
[1633092465867,3.12534019,3226.4,3225.5,0.009]
[1633092466069,10.8524509,3226.4,3225.5,0.009]
[1633092466269,6.2016909,3226.4,3225.5,0.009]
[1633092466667,1.294,3226.0,3225.5,0.009]
[1633092466871,6.2016909,3226.4,3225.5,0.009]
[1633092466872,0.73287357,3225.8,3225.5,0.009]
[1633092467667,0.73287357,3225.8,3225.4,1.02904542]
[1633092467867,0.02392582,3226.3,3225.4,1.02904542]
[1633092468134,0.02392582,3226.3,3225.5,0.009]
[1633092468269,6.20199,3225.9,3225.5,0.009]
[1633092468568,6.20199,3225.9,3224.8,0.012]
[1633092468771,0.02392582,3226.3,3225.1,0.78094285]
[1633092468772,0.71163809,3225.7,3225.1,0.78094285]
[1633092468967,0.71163809,3225.7,3224.8,0.012]
[1633092469167,0.71163809,3225.7,3225.3,1.21312021]
[1633092469569,16.094,3225.5,3225.4,0.009]
[1633092469772,14.8,3225.5,3225.4,0.009]
[1633092470073,14.8,3225.5,3224.9,0.1215034]
[1633092470074,3.1019469,3225.4,3224.9,0.1215034]
[1633092470268,3.2509469,3225.4,3225.0,0.012]
[1633092470670,0.1328,3225.3,3225.0,0.012]
[1633092470870,9.0488,3225.2,3225.0,0.012]
[1633092471133,7.7548,3225.2,3225.0,0.012]
[1633092471273,0.74890094,3225.1,3225.0,0.012]
[1633092472071,2.04290094,3225.1,3225.0,0.012]
[1633092472276,2.04290094,3225.1,3224.3,0.003]
[1633092472277,15.403,3225.0,3224.3,0.003]
[1633092472472,15.403,3225.0,3224.0,0.003]
[1633092472473,0.149,3224.9,3223.7,0.006]
[1633092472672,0.149,3224.9,3223.4,0.009]
[1633092472673,0.85879032,3223.9,3223.4,0.009]
[1633092472872,0.85879032,3223.9,3223.3,0.009]
[1633092473071,0.149,3224.6,3223.1,0.009]
[1633092473272,4.65397,3224.0,3223.1,0.009]
[1633092473476,3.1029678,3223.8,3223.1,0.009]
[1633092473671,3.1029678,3223.8,3222.7,0.012]
[1633092473872,3.1029678,3223.8,3222.7,3.11451]
[1633092474132,0.94368506,3223.7,3223.4,1.14847915]
[1633092474273,0.94368506,3223.7,3222.8,0.012]
[1633092474473,4.65471,3223.6,3223.5,0.009]
[1633092474672,4.65471,3223.6,3222.6,0.079913]
[1633092474673,4.65471,3223.6,3222.7,0.012]
[1633092474877,0.03770212,3223.8,3223.1,1.294]
[1633092475074,0.18315461,3225.0,3223.5,0.079913]
[1633092475274,0.18315461,3225.0,3223.2,0.009]
[1633092475473,4.65352,3224.4,3223.6,0.006]
[1633092475671,4.65352,3224.4,3223.1,0.009]
[1633092475672,4.60352,3224.4,3223.1,0.009]
[1633092475872,0.001,3223.7,3223.6,0.96482235]
[1633092476071,0.001,3223.7,3223.1,0.009]
[1633092476272,0.001,3223.7,3223.6,0.006]
[1633092476672,0.001,3223.7,3223.1,0.009]
[1633092477135,0.001,3223.7,3223.6,0.97166554]
[1633092477477,0.001,3223.7,3223.6,0.006]
[1633092477872,0.001,3223.7,3223.3,0.009]
[1633092478472,0.08242388,3223.6,3223.3,0.009]
[1633092478672,6.28885812,3224.4,3224.2,0.93473945]
[1633092478875,6.32414,3225.2,3223.6,13.75]
[1633092478876,0.1192,3225.2,3224.4,3.91522367]
[1633092479078,0.003,3225.5,3224.4,3.91522367]
[1633092479079,0.003,3225.5,3225.0,0.079913]
[1633092479275,0.003,3225.5,3225.0,3.10111778]
[1633092479480,0.003,3225.5,3225.1,0.41457594]
[1633092479674,0.003,3225.5,3225.4,15.42595653]
[1633092479873,0.003,3225.5,3225.4,15.57495653]
[1633092480148,0.003,3225.5,3225.4,16.73347076]
[1633092480474,0.003,3226.0,3225.4,18.97487076]
[1633092480677,0.003,3226.0,3225.9,15.69204271]
[1633092480874,0.003,3226.5,3225.9,15.84104271]
[1633092481077,0.003,3226.5,3226.1,0.34165923]
[1633092481275,0.003,3226.5,3226.3,1.99701686]
[1633092481475,0.003,3226.5,3226.4,0.41307701]
[1633092481776,0.003,3226.5,3226.4,1.443]
[1633092483975,0.03182806,3226.5,3226.4,1.443]
[1633092484575,0.003,3228.0,3227.0,4.64761]
[1633092484776,0.003,3228.0,3227.0,4.65061]
[1633092485577,0.91835169,3228.0,3227.5,1.18010318]
[1633092485777,0.91835169,3228.0,3227.0,4.65061]
[1633092486180,0.003,3228.0,3227.5,1.294]
[1633092486382,0.003,3228.0,3227.5,0.079913]
[1633092486778,0.003,3228.0,3227.7,4.64676]
[1633092486978,0.003,3228.0,3227.8,0.95739479]
[1633092487180,0.003,3229.0,3228.9,1.52912611]
[1633092487379,0.003,3229.0,3228.6,0.173932]
[1633092487579,0.003,3229.0,3228.6,0.149]
[1633092488181,0.7982744,3228.9,3228.2,0.149]
[1633092489153,0.94939736,3228.0,3227.8,0.149]
[1633092489347,0.94939736,3228.0,3227.5,0.003]
[1633092489546,12.32516663,3227.6,3227.5,0.003]
[1633092489747,12.32516663,3227.6,3226.0,11.9111]
[1633092489748,12.32516663,3227.6,3226.4,0.009]
[1633092489948,0.86001482,3226.6,3226.1,0.009]
[1633092490150,0.86001482,3226.6,3225.6,0.012]
[1633092490350,0.02560976,3226.4,3225.5,0.015]
[1633092490545,0.149,3226.3,3225.0,0.018]
[1633092490946,0.079913,3226.8,3225.9,0.90821738]
[1633092491347,0.149,3227.0,3226.0,0.012]
[1633092491547,0.149,3227.0,3226.1,0.95436449]
[1633092491745,0.149,3227.0,3226.0,0.1366856]
[1633092491949,0.001,3226.5,3226.2,0.009]
[1633092492157,0.001,3226.5,3226.0,0.1276856]
[1633092492158,0.001,3226.5,3226.3,0.85867615]
[1633092492547,0.001,3226.5,3226.4,0.009]
[1633092492951,0.001,3226.5,3226.4,0.87547208]
[1633092493548,0.001,3226.5,3226.4,2.16947208]
[1633092493749,0.001,3226.5,3226.4,0.87547208]
[1633092494550,0.001,3226.5,3226.4,2.16947208]
[1633092494750,0.001,3226.5,3226.4,0.87547208]
[1633092494949,0.02492175,3226.5,3226.4,0.87547208]
[1633092496152,0.02492175,3226.5,3226.4,0.009]
[1633092497152,0.001,3226.5,3226.4,1.1641744]
[1633092497653,0.001,3226.5,3226.4,1.42975034]
[1633092497852,0.001,3226.5,3226.4,2.72375034]
[1633092498056,0.001,3226.5,3226.4,2.4581744]
[1633092498856,0.94939736,3228.0,3227.0,2.00606046]
[1633092499054,0.94939736,3228.0,3227.6,0.045551]
[1633092499255,0.94939736,3228.0,3227.7,4.64637]
[1633092499653,0.94939736,3228.0,3227.7,0.72969969]
[1633092500056,0.94939736,3228.0,3227.5,0.003]
[1633092500256,0.94939736,3228.0,3227.1,2.78934002]
[1633092500456,0.97630947,3228.0,3227.3,4.64712]
[1633092500856,0.97630947,3228.0,3227.9,1.15035076]
[1633092501857,0.97630947,3228.0,3227.4,3.09747]
[1633092502055,0.97630947,3228.0,3227.1,4.48732817]
[1633092502255,0.97630947,3228.0,3227.5,1.294]
[1633092502456,0.97630947,3228.0,3227.2,0.26557594]
[1633092502656,0.95239736,3228.0,3227.2,0.26557594]
[1633092502858,0.95239736,3228.0,3227.7,0.76641721]
[1633092503057,0.95239736,3228.0,3227.7,5.41293721]
[1633092503261,0.95239736,3228.0,3227.7,5.26293721]
[1633092503857,0.95239736,3228.0,3227.7,0.61641721]
[1633092504260,0.95239736,3228.0,3227.8,1.06593015]
[1633092504461,0.95239736,3228.0,3227.9,16.694]
[1633092504658,0.95239736,3228.0,3227.9,16.843]
[1633092504858,3.05852222,3230.1,3228.1,14.65]
[1633092505061,0.003,3230.5,3228.1,14.65]
[1633092505062,0.032735,3230.3,3228.2,0.149]
[1633092505260,0.77850886,3229.9,3229.5,0.003]
[1633092505458,0.77850886,3229.9,3229.0,0.003]
[1633092505459,1.294,3229.7,3229.0,0.003]
[1633092505658,0.77850886,3229.9,3228.3,0.006]
[1633092505861,0.77850886,3229.9,3228.5,0.003]
[1633092506057,0.02390026,3229.7,3228.5,0.003]
[1633092506263,0.02390026,3229.7,3228.4,0.006]
[1633092506264,0.1041786,3229.3,3228.4,0.006]
[1633092506459,0.95192284,3228.6,3228.2,1.17752712]
[1633092506658,0.1041786,3229.3,3228.2,1.17752712]
[1633092506659,1.80476221,3229.1,3228.2,1.17752712]
[1633092506858,1.80476221,3229.1,3228.3,0.006]
[1633092507459,0.03786016,3229.2,3228.3,0.006]
[1633092507658,0.1041786,3229.3,3228.4,0.87546975]
[1633092507659,0.96863053,3229.0,3228.4,0.87546975]
[1633092508058,0.14140428,3229.3,3228.5,0.006]
[1633092508262,0.1041786,3229.3,3228.5,0.006]
[1633092508462,1.294,3228.9,3227.7,0.009]
[1633092508661,0.079913,3228.3,3227.5,0.003]
[1633092508861,0.149,3228.2,3227.5,0.003]
[1633092509059,0.149,3228.2,3227.4,0.94551936]
[1633092509060,0.9334749,3228.0,3227.4,0.94551936]
[1633092509258,1.0824749,3228.0,3227.1,0.003]
[1633092509459,1.0824749,3228.0,3227.0,2.00906046]